fUST/lending_fUST_20240112
["ID","MTS","AMOUNT","RATE_DAILY","PERIOD"]
[311383564,1705072244326,-574.05,0.00021917,2]
[311383565,1705072244335,-500.48228508,0.00021917,2]
[311383567,1705072244344,-500.0,0.00021917,2]
[311383569,1705072244353,-504.54609046,0.00021917,2]
[311383572,1705072244363,-500.0,0.00021917,2]
[311383574,1705072244372,-602.53350678,0.00021917,2]
[311383576,1705072244382,-503.93237141,0.00021917,2]
[311383578,1705072244392,-500.0,0.00021917,2]
[311383580,1705072244403,-517.45998874,0.00021917,2]
[311383582,1705072244412,-525.48,0.00021917,2]
[311383584,1705072244421,-500.0,0.00021917,2]
[311383586,1705072244430,-500.0,0.00021917,2]
[311383588,1705072244439,-500.0,0.00021917,2]
[311383590,1705072244448,-532.88570115,0.00021917,2]
[311383592,1705072244457,-177.79674317,0.00021917,2]
[311383594,1705072244466,-500.0,0.00021917,2]
[311383596,1705072244476,-500.0,0.00021917,2]
[311383598,1705072244486,-500.0,0.00021917,2]
[311383609,1705072244579,-500.0,0.00021917,2]
[311383611,1705072244588,-500.0,0.00021917,2]
[311383613,1705072244598,-500.0,0.00021917,2]
[311383615,1705072244607,-514.22631928,0.00021917,2]
[311383617,1705072244616,-500.0,0.00021917,2]
[311383619,1705072244625,-500.0,0.00021917,2]
[311383621,1705072244635,-500.0,0.00021917,2]
[311383623,1705072244644,-500.0,0.00021917,2]
[311383624,1705072244653,-563.96233462,0.00021917,2]
[311383626,1705072244662,-536.91540474,0.00021917,2]
[311383629,1705072244671,-3109.15,0.00021917,2]
[311383630,1705072244681,-500.0,0.00021917,2]
[311383632,1705072244690,-500.0,0.00021917,2]
[311383634,1705072244700,-500.0,0.00021917,2]
[311383637,1705072244709,-500.0,0.00021917,2]
[311383639,1705072244718,-1000.0,0.00021917,2]
[311383640,1705072244728,-500.0,0.00021917,2]
[311383642,1705072244737,-500.0,0.00021917,2]
[311383644,1705072244745,-500.0,0.00021917,2]
[311383646,1705072244755,-501.55397726,0.00021917,2]
[311383648,1705072244764,-430.32426802,0.00021917,2]
[311383650,1705072244773,-661.64,0.00021917,2]
[311383652,1705072244782,-500.0,0.00021917,2]
[311383654,1705072244791,-661.64,0.00021917,2]
[311383656,1705072244800,-661.64,0.00021917,2]
[311383658,1705072244809,-661.64,0.00021917,2]
[311383660,1705072244818,-661.64,0.00021917,2]
[311383663,1705072244827,-661.64,0.00021917,2]
[311383665,1705072244836,-661.64,0.00021917,2]
[311383667,1705072244846,-661.64,0.00021917,2]
[311383669,1705072244855,-661.64,0.00021917,2]
[311383670,1705072244864,-661.64,0.00021917,2]
[311383672,1705072244875,-661.64,0.00021917,2]
[311383674,1705072244885,-661.64,0.00021917,2]
[311383676,1705072244894,-661.64,0.00021917,2]
[311383678,1705072244903,-661.64,0.00021917,2]
[311383680,1705072244915,-661.64,0.00021917,2]
[311383682,1705072244924,-500.0,0.00021917,2]
[311383684,1705072244933,-500.0,0.00021917,2]
[311383686,1705072244942,-500.0,0.00021917,2]
[311383688,1705072244953,-1270.83,0.00021917,2]
[311383690,1705072244962,-245.82913321,0.00021917,2]
[311383692,1705072244971,-500.0,0.00021917,2]
[311383694,1705072244980,-500.0,0.00021917,2]
[311383696,1705072244992,-1239.14,0.00021917,2]
[311383699,1705072245002,-500.0,0.00021917,2]
[311383700,1705072245011,-197.14581503,0.00021917,2]
[311383703,1705072245020,-500.0,0.00021917,2]
[311383704,1705072245029,-1226.17,0.00021917,2]
[311383706,1705072245038,-530.49340494,0.00021917,2]
[311383708,1705072245047,-500.0,0.00021917,2]
[311383710,1705072245056,-500.0,0.00021917,2]
[311383712,1705072245065,-500.0,0.00021917,2]
[311383714,1705072245074,-500.0,0.00021917,2]
[311383716,1705072245083,-500.0,0.00021917,2]
[311383718,1705072245093,-528.35091218,0.00021917,2]
[311383720,1705072245102,-524.64071309,0.00021917,2]
[311383723,1705072245112,-401.13545937,0.00021917,2]
[311383724,1705072245121,-511.2,0.00021917,2]
[311383726,1705072245130,-506.78592905,0.00021917,2]
[311383728,1705072245139,-500.0,0.00021917,2]
[311383730,1705072245148,-500.0,0.00021917,2]
[311383732,1705072245157,-504.58103313,0.00021917,2]
[311383734,1705072245165,-1193.55,0.00021917,2]
[311383736,1705072245174,-500.0,0.00021917,2]
[311383738,1705072245183,-519.0,0.00021917,2]
[311383740,1705072245192,-500.0,0.00021917,2]
[311383742,1705072245201,-500.0,0.00021917,2]
[311383744,1705072245211,-500.0,0.00021917,2]
[311383746,1705072245220,-500.0,0.00021917,2]
[311383748,1705072245229,-510.47449178,0.00021917,2]
[311383750,1705072245239,-500.0,0.00021917,2]
[311383752,1705072245249,-500.0,0.00021917,2]
[311383754,1705072245258,-379.22616852,0.00021917,2]
[311383766,1705072245360,-120.77383148,0.00021917,2]
[311383768,1705072245369,-2213.52496305,0.00021917,2]
[311383772,1705072245395,-432.94,0.00021917,2]
[311383774,1705072245406,-1935.30503695,0.00021917,2]
[311383776,1705072245415,-500.0,0.00021917,2]
[311383778,1705072245424,-500.0,0.00021917,2]
[311383780,1705072245433,-500.0,0.00021917,2]
[311383782,1705072245444,-317.6795963,0.00021917,2]
[311383784,1705072245454,-472.11280289,0.00021917,2]
[311383787,1705072245463,-500.0,0.00021917,2]
[311383790,1705072245472,-500.0,0.00021917,2]
[311383792,1705072245481,-65.00698886,0.00021917,2]
[311383794,1705072245493,-434.99301114,0.00021917,2]
[311383796,1705072245502,-500.0,0.00021917,2]
[311383798,1705072245511,-500.0,0.00021917,2]
[311383801,1705072245520,-501.33793308,0.00021917,2]
[311383803,1705072245531,-601.10884272,0.00021917,2]
[311383805,1705072245541,-500.0,0.00021917,2]
[311383807,1705072245551,-508.16948772,0.00021917,2]
[311383809,1705072245561,-500.0,0.00021917,2]
[311383811,1705072245570,-500.0,0.00021917,2]
[311383814,1705072245579,-536.20111907,0.00021917,2]
[311383816,1705072245589,-500.0,0.00021917,2]
[311383819,1705072245598,-500.0,0.00021917,2]
[311383822,1705072245608,-500.0,0.00021917,2]
[311383825,1705072245618,-500.0,0.00021917,2]
[311383828,1705072245627,-500.0,0.00021917,2]
[311383829,1705072245640,-549.18434283,0.00021917,2]
[311383832,1705072245650,-500.0,0.00021917,2]
[311383835,1705072245659,-500.0,0.00021917,2]
[311383838,1705072245669,-442.54477108,0.00021917,2]
[311383840,1705072245678,-500.0,0.00021917,2]
[311383842,1705072245688,-500.0,0.00021917,2]
[311383844,1705072245697,-986.6,0.00021917,2]
[311383846,1705072245706,-343.43710318,0.00021948,2]
[311383853,1705072245765,-1278.14042003,0.0002099,3]
[311383855,1705072245776,-3065.60957997,0.0002099,3]
[311383857,1705072245786,-500.0,0.00021917,2]
[311383859,1705072245795,-559.88285056,0.00021948,2]
[311383861,1705072245805,-156.91175548,0.00022,2]
[311383863,1705072245814,-3937.50128455,0.00022,2]
[311383865,1705072245823,-425.12426258,0.00022,2]
[311383867,1705072245832,-295.18149599,0.00022087,3]
[311383869,1705072245842,-155.00465014,0.00022176,2]
[311383871,1705072245851,-903.31995374,0.00022178,2]
[311383873,1705072245860,-661.64,0.0002219,2]
[311383875,1705072245869,-661.64,0.0002219,2]
[311383877,1705072245879,-500.0,0.00022191,2]
[311383879,1705072245892,-500.0,0.00022191,2]
[311383881,1705072245901,-500.0,0.00022191,2]
[311383883,1705072245910,-85.73767119,0.00022191,2]
[311383885,1705072245923,-414.26232881,0.00022191,2]
[311383886,1705072245933,-500.0,0.00022191,2]
[311383888,1705072245942,-343.80162045,0.00022191,2]
[311383890,1705072245952,-500.0,0.00022191,2]
[311383892,1705072245961,-422.89262591,0.00022191,2]
[311383894,1705072245970,-500.0,0.00022191,2]
[311383896,1705072245979,-500.0,0.00022191,2]
[311383898,1705072245987,-500.0,0.00022191,2]
[311383900,1705072245997,-500.0,0.00022191,2]
[311383902,1705072246006,-361.54342483,0.00022191,2]
[311383904,1705072246018,-215.64950492,0.00022191,2]
[311383906,1705072246027,-300.92431289,0.00022191,2]
[311383908,1705072246036,-500.0,0.00022191,2]
[311383910,1705072246045,-500.0,0.00022191,2]
[311383912,1705072246055,-500.0,0.00022191,2]
[311383914,1705072246065,-500.0,0.00022191,2]
[311383916,1705072246073,-500.0,0.00022191,2]
[311383918,1705072246083,-500.0,0.00022191,2]
[311383920,1705072246092,-506.81906323,0.00022191,2]
[311383922,1705072246101,-501.84184187,0.00022191,2]
[311383924,1705072246111,-500.0,0.00022191,2]
[311383926,1705072246120,-500.0,0.00022191,2]
[311383928,1705072246130,-500.0,0.00022191,2]
[311383930,1705072246141,-513.71200264,0.00022191,2]
[311383932,1705072246149,-500.0,0.00022191,2]
[311383934,1705072246159,-500.0,0.00022191,2]
[311383936,1705072246169,-500.0,0.00022191,2]
[311383938,1705072246177,-252.89966959,0.00022191,2]
[311383940,1705072246186,-500.0,0.00022191,2]
[311383942,1705072246195,-343.29234358,0.00022191,2]
[311383944,1705072246207,-156.70765642,0.00022191,2]
[311383946,1705072246215,-500.0,0.00022191,2]
[311383948,1705072246225,-500.0,0.00022191,2]
[311383950,1705072246234,-500.0,0.00022191,2]
[311383952,1705072246243,-500.0,0.00022191,2]
[311383954,1705072246252,-500.0,0.00022191,2]
[311383956,1705072246261,-500.0,0.00022191,2]
[311383958,1705072246270,-500.0,0.00022191,2]
[311383960,1705072246279,-500.0,0.00022191,2]
[311383962,1705072246288,-500.0,0.00022191,2]
[311383964,1705072246297,-500.0,0.00022191,2]
[311383966,1705072246306,-500.0,0.00022191,2]
[311383968,1705072246314,-566.51,0.00022191,2]
[311383970,1705072246324,-500.0,0.00022191,2]
[311383972,1705072246333,-500.0,0.00022191,2]
[311383974,1705072246342,-500.0,0.00022191,2]
[311383976,1705072246350,-500.0,0.00022191,2]
[311383978,1705072246360,-500.0,0.00022191,2]
[311383980,1705072246369,-500.0,0.00022191,2]
[311383982,1705072246377,-609.52637741,0.00022191,2]
[311383984,1705072246389,-399.62867393,0.00022191,2]
[311383986,1705072246399,-500.0,0.00022191,2]
[311383988,1705072246407,-500.0,0.00022191,2]
[311383990,1705072246417,-500.0,0.00022191,2]
[311383992,1705072246426,-500.0,0.00022191,2]
[311383994,1705072246435,-500.0,0.00022191,2]
[311383996,1705072246444,-502.2899914,0.00022191,2]
[311383998,1705072246453,-227.76444057,0.00022191,2]
[311384000,1705072246462,-442.19069985,0.00022191,2]
[311384002,1705072246471,-500.0,0.00022191,2]
[311384004,1705072246480,-500.0,0.00022191,2]
[311384006,1705072246489,-516.03177833,0.00022191,2]
[311384008,1705072246498,-500.0,0.00022191,2]
[311384010,1705072246507,-500.0,0.00022191,2]
[311384012,1705072246516,-500.0,0.00022191,2]
[311384022,1705072246608,-500.0,0.00022191,2]
[311384024,1705072246617,-500.0,0.00022191,2]
[311384026,1705072246626,-500.0,0.00022191,2]
[311384028,1705072246637,-283.42872033,0.00022191,2]
[311384030,1705072246647,-525.29102971,0.00022191,2]
[311384032,1705072246656,-500.0,0.00022191,2]
[311384034,1705072246665,-407.75411898,0.00022191,2]
[311384036,1705072246675,-500.0,0.00022191,2]
[311384038,1705072246684,-500.0,0.00022191,2]
[311384040,1705072246693,-346.47463783,0.00022191,2]
[311384041,1705072246702,-500.0,0.00022191,2]
[311384043,1705072246711,-500.0,0.00022191,2]
[311384045,1705072246720,-500.0,0.00022191,2]
[311384047,1705072246730,-500.0,0.00022191,2]
[311384049,1705072246739,-500.0,0.00022191,2]
[311384051,1705072246748,-500.0,0.00022191,2]
[311384053,1705072246757,-500.0,0.00022191,2]
[311384055,1705072246767,-500.0,0.00022191,2]
[311384057,1705072246776,-500.0,0.00022191,2]
[311384059,1705072246786,-500.0,0.00022191,2]
[311384061,1705072246795,-501.04927739,0.00022191,2]
[311384063,1705072246805,-600.0,0.00022191,2]
[311384065,1705072246814,-500.0,0.00022191,2]
[311384067,1705072246824,-500.0,0.00022191,2]
[311384070,1705072246833,-500.0,0.00022191,2]
[311384071,1705072246843,-500.0,0.00022191,2]
[311384073,1705072246852,-500.0,0.00022191,2]
[311384075,1705072246861,-500.0,0.00022191,2]
[311384077,1705072246871,-500.0,0.00022191,2]
[311384079,1705072246883,-500.0,0.00022191,2]
[311384081,1705072246893,-500.0,0.00022191,2]
[311384083,1705072246902,-500.0,0.00022191,2]
[311384085,1705072246915,-468.15575133,0.00022191,2]
[311384087,1705072246924,-500.0,0.00022191,2]
[311384089,1705072246933,-500.0,0.00022191,2]
[311384091,1705072246947,-500.0,0.00022191,2]
[311384093,1705072246956,-294.44703932,0.00022191,2]
[311384095,1705072246964,-501.62499809,0.00022191,2]
[311384097,1705072246973,-503.17641592,0.00022191,2]
[311384099,1705072246984,-548.17159399,0.00022191,2]
[311384101,1705072246995,-500.0,0.00022191,2]
[311384103,1705072247005,-361.23136847,0.00022191,2]
[311384105,1705072247014,-500.0,0.00022191,2]
[311384107,1705072247023,-344.44482029,0.00022191,2]
[311384110,1705072247034,-500.0,0.00022191,2]
[311384112,1705072247043,-500.0,0.00022191,2]
[311384114,1705072247052,-500.0,0.00022191,2]
[311384116,1705072247061,-500.0,0.00022191,2]
[311384118,1705072247070,-500.0,0.00022191,2]
[311384119,1705072247080,-500.0,0.00022191,2]
[311384121,1705072247089,-500.0,0.00022191,2]
[311384123,1705072247098,-500.0,0.00022191,2]
[311384125,1705072247107,-500.0,0.00022191,2]
[311384127,1705072247116,-500.0,0.00022191,2]
[311384129,1705072247126,-500.0,0.00022191,2]
[311384131,1705072247137,-500.0,0.00022191,2]
[311384133,1705072247146,-500.0,0.00022191,2]
[311384135,1705072247155,-500.0,0.00022191,2]
[311384137,1705072247164,-500.0,0.00022191,2]
[311384139,1705072247173,-500.0,0.00022191,2]
[311384141,1705072247184,-500.0,0.00022191,2]
[311384143,1705072247193,-500.0,0.00022191,2]
[311384145,1705072247202,-500.0,0.00022191,2]
[311384147,1705072247211,-500.0,0.00022191,2]
[311384149,1705072247220,-500.0,0.00022191,2]
[311384151,1705072247229,-500.0,0.00022191,2]
[311384153,1705072247238,-500.0,0.00022191,2]
[311384155,1705072247247,-500.0,0.00022191,2]
[311384156,1705072247256,-501.35168108,0.00022191,2]
[311384157,1705072247264,-500.0,0.00022191,2]
[311384158,1705072247273,-518.16143272,0.00022191,2]
[311384159,1705072247281,-500.0,0.00022191,2]
[311384160,1705072247290,-500.0,0.00022191,2]
[311384161,1705072247298,-555.02,0.00022191,2]
[311384162,1705072247308,-549.71027155,0.00022191,2]
[311384163,1705072247317,-500.0,0.00022191,2]
[311384164,1705072247326,-500.0,0.00022191,2]
[311384165,1705072247335,-500.0,0.00022191,2]
[311384166,1705072247344,-574.05,0.00022191,2]
[311384167,1705072247352,-500.0,0.00022191,2]
[311384168,1705072247361,-500.0,0.00022191,2]
[311384169,1705072247370,-500.0,0.00022191,2]
[311384170,1705072247379,-525.48,0.00022191,2]
[311384171,1705072247389,-500.0,0.00022191,2]
[311384172,1705072247398,-500.0,0.00022191,2]
[311384173,1705072247406,-500.0,0.00022191,2]
[311384174,1705072247416,-502.91432883,0.00022191,2]
[311384175,1705072247425,-500.0,0.00022191,2]
[311384176,1705072247433,-500.0,0.00022191,2]
[311384177,1705072247442,-500.0,0.00022191,2]
[311384178,1705072247451,-3109.15,0.00022191,2]
[311384179,1705072247460,-500.0,0.00022191,2]
[311384180,1705072247469,-500.0,0.00022191,2]
[311384181,1705072247478,-500.0,0.00022191,2]
[311384183,1705072247486,-395.41399557,0.00022191,2]
[311384184,1705072247496,-1000.0,0.00022191,2]
[311384186,1705072247505,-500.0,0.00022191,2]
[311384188,1705072247514,-500.0,0.00022191,2]
[311384190,1705072247523,-500.0,0.00022191,2]
[311384192,1705072247532,-500.0,0.00022191,2]
[311384194,1705072247541,-500.0,0.00022191,2]
[311384196,1705072247551,-1270.83,0.00022191,2]
[311384198,1705072247560,-500.0,0.00022191,2]
[311384200,1705072247569,-1239.14,0.00022191,2]
[311384202,1705072247579,-500.0,0.00022191,2]
[311384204,1705072247588,-501.77134193,0.00022191,2]
[311384206,1705072247597,-1226.17,0.00022191,2]
[311384208,1705072247606,-500.0,0.00022191,2]
[311384210,1705072247615,-500.0,0.00022191,2]
[311384212,1705072247624,-581.76926559,0.00022191,2]
[311384214,1705072247636,-511.2,0.00022191,2]
[311384216,1705072247644,-352.34600322,0.00022191,2]
[311384218,1705072247653,-1193.55,0.00022191,2]
[311384220,1705072247662,-500.0,0.00022191,2]
[311384222,1705072247672,-519.0,0.00022191,2]
[311384224,1705072247681,-500.0,0.00022191,2]
[311384226,1705072247690,-500.0,0.00022191,2]
[311384228,1705072247700,-500.0,0.00022191,2]
[311384230,1705072247709,-500.0,0.00022191,2]
[311384232,1705072247718,-500.0,0.00022191,2]
[311384234,1705072247727,-4581.77,0.00022191,2]
[311384236,1705072247736,-500.0,0.00022191,2]
[311384238,1705072247745,-500.0,0.00022191,2]
[311384240,1705072247754,-500.0,0.00022191,2]
[311384242,1705072247763,-500.0,0.00022191,2]
[311384244,1705072247772,-470.02436775,0.00022191,2]
[311384246,1705072247781,-500.0,0.00022191,2]
[311384248,1705072247790,-500.0,0.00022191,2]
[311384250,1705072247799,-500.0,0.00022191,2]
[311384252,1705072247808,-500.0,0.00022191,2]
[311384254,1705072247817,-500.0,0.00022191,2]
[311384256,1705072247826,-500.0,0.00022191,2]
[311384258,1705072247835,-500.0,0.00022191,2]
[311384259,1705072247844,-331.71959363,0.00022191,2]
[311384261,1705072247853,-500.0,0.00022191,2]
[311384263,1705072247862,-500.0,0.00022191,2]
[311384265,1705072247871,-986.6,0.00022191,2]
[311384267,1705072247882,-305.57833437,0.00022362,2]
[311384269,1705072247893,-903.31995374,0.00022409,2]
[311384271,1705072247902,-661.64,0.00022464,2]
[311384273,1705072247911,-661.64,0.00022464,2]
[311384275,1705072247920,-500.0,0.00022465,2]
[311384277,1705072247929,-500.0,0.00022465,2]
[311384279,1705072247938,-500.0,0.00022465,2]
[311384281,1705072247947,-500.0,0.00022465,2]
[311384283,1705072247956,-500.0,0.00022465,2]
[311384285,1705072247965,-500.0,0.00022465,2]
[311384287,1705072247974,-500.0,0.00022465,2]
[311384289,1705072247983,-500.0,0.00022465,2]
[311384290,1705072247993,-500.0,0.00022465,2]
[311384292,1705072248003,-500.0,0.00022465,2]
[311384295,1705072248012,-500.0,0.00022465,2]
[311384297,1705072248021,-165.5381675,0.00022465,2]
[311384298,1705072248031,-500.0,0.00022465,2]
[311384300,1705072248040,-500.0,0.00022465,2]
[311384302,1705072248048,-500.0,0.00022465,2]
[311384304,1705072248057,-500.0,0.00022465,2]
[311384306,1705072248066,-500.0,0.00022465,2]
[311384308,1705072248075,-505.35033029,0.00022465,2]
[311384310,1705072248084,-566.51,0.00022465,2]
[311384312,1705072248095,-184.13370995,0.00022465,2]
[311384314,1705072248104,-500.0,0.00022465,2]
[311384316,1705072248113,-500.0,0.00022465,2]
[311384318,1705072248122,-500.0,0.00022465,2]
[311384320,1705072248133,-500.0,0.00022465,2]
[311384322,1705072248143,-500.0,0.00022465,2]
[311384324,1705072248151,-500.0,0.00022465,2]
[311384326,1705072248160,-500.0,0.00022465,2]
[311384328,1705072248169,-500.0,0.00022465,2]
[311384330,1705072248179,-502.13157992,0.00022465,2]
[311384332,1705072248190,-500.0,0.00022465,2]
[311384334,1705072248199,-500.0,0.00022465,2]
[311384336,1705072248208,-500.0,0.00022465,2]
[311384338,1705072248217,-500.0,0.00022465,2]
[311384340,1705072248226,-500.0,0.00022465,2]
[311384342,1705072248235,-500.0,0.00022465,2]
[311384344,1705072248244,-500.0,0.00022465,2]
[311384346,1705072248253,-505.44493024,0.00022465,2]
[311384348,1705072248261,-200.31408391,0.00022465,2]
[311384350,1705072248270,-500.0,0.00022465,2]
[311384352,1705072248279,-157.5038137,0.00022465,2]
[311384354,1705072248289,-620.78,0.00022465,2]
[311384356,1705072248298,-500.0,0.00022465,2]
[311384358,1705072248307,-600.97778314,0.00022465,2]
[311384360,1705072248316,-500.0,0.00022465,2]
[311384362,1705072248325,-500.0,0.00022465,2]
[311384364,1705072248334,-500.0,0.00022465,2]
[311384365,1705072248343,-500.0,0.00022465,2]
[311384367,1705072248353,-500.0,0.00022465,2]
[311384369,1705072248362,-500.0,0.00022465,2]
[311384371,1705072248371,-500.0,0.00022465,2]
[311384373,1705072248380,-500.0,0.00022465,2]
[311384375,1705072248394,-500.0,0.00022465,2]
[311384377,1705072248403,-502.14628969,0.00022465,2]
[311384379,1705072248412,-500.0,0.00022465,2]
[311384381,1705072248420,-621.30815184,0.00022465,2]
[311384383,1705072248429,-500.0,0.00022465,2]
[311384385,1705072248439,-500.0,0.00022465,2]
[311384387,1705072248448,-500.0,0.00022465,2]
[311384389,1705072248457,-500.0,0.00022465,2]
[311384391,1705072248467,-500.0,0.00022465,2]
[311384393,1705072248476,-500.0,0.00022465,2]
[311384395,1705072248485,-500.0,0.00022465,2]
[311384397,1705072248494,-500.0,0.00022465,2]
[311384407,1705072248582,-500.0,0.00022465,2]
[311384409,1705072248592,-235.18402778,0.00022465,2]
[311384411,1705072248601,-500.0,0.00022465,2]
[311384413,1705072248610,-500.0,0.00022465,2]
[311384415,1705072248619,-500.0,0.00022465,2]
[311384417,1705072248628,-545.11433363,0.00022465,2]
[311384419,1705072248642,-500.0,0.00022465,2]
[311384422,1705072248652,-500.0,0.00022465,2]
[311384423,1705072248661,-500.0,0.00022465,2]
[311384425,1705072248671,-500.0,0.00022465,2]
[311384427,1705072248680,-500.0,0.00022465,2]
[311384429,1705072248689,-500.0,0.00022465,2]
[311384431,1705072248698,-555.02,0.00022465,2]
[311384433,1705072248709,-500.0,0.00022465,2]
[311384435,1705072248717,-69.4991114,0.00022465,2]
[311384437,1705072248732,-430.5008886,0.00022465,2]
[311384439,1705072248741,-53.08181824,0.00022465,2]
[311384442,1705072248753,-520.96818176,0.00022465,2]
[311384444,1705072248762,-500.0,0.00022465,2]
[311384446,1705072248771,-500.0,0.00022465,2]
[311384448,1705072248780,-500.0,0.00022465,2]
[311384450,1705072248789,-525.48,0.00022465,2]
[311384452,1705072248798,-500.0,0.00022465,2]
[311384454,1705072248808,-500.0,0.00022465,2]
[311384455,1705072248817,-500.0,0.00022465,2]
[311384457,1705072248827,-500.0,0.00022465,2]
[311384459,1705072248836,-500.0,0.00022465,2]
[311384461,1705072248846,-3109.15,0.00022465,2]
[311384463,1705072248855,-500.0,0.00022465,2]
[311384465,1705072248864,-334.96709269,0.00022465,2]
[311384467,1705072248873,-734.41555908,0.00022465,2]
[311384469,1705072248885,-319.28218975,0.00022465,2]
[311384471,1705072248894,-500.0,0.00022465,2]
[311384473,1705072248904,-1270.83,0.00022465,2]
[311384475,1705072248915,-500.0,0.00022465,2]
[311384477,1705072248924,-1239.14,0.00022465,2]
[311384479,1705072248934,-500.0,0.00022465,2]
[311384481,1705072248942,-1226.17,0.00022465,2]
[311384483,1705072248952,-508.23531577,0.00022465,2]
[311384485,1705072248962,-500.0,0.00022465,2]
[311384487,1705072248971,-511.2,0.00022465,2]
[311384489,1705072248982,-1193.55,0.00022465,2]
[311384491,1705072248991,-519.0,0.00022465,2]
[311384493,1705072249001,-500.0,0.00022465,2]
[311384495,1705072249010,-221.18200146,0.00022465,2]
[311384497,1705072249019,-1704.1196922,0.00022465,2]
[311384500,1705072249031,-2877.6503078,0.00022465,2]
[311384502,1705072249040,-224.92643519,0.00022465,2]
[311384518,1705072249189,-452.7,0.00021917,2]
[311384859,1705072256098,155.01705188,0.00021916,4]
[311384867,1705072381148,200.0,0.0002252,7]
[311384898,1705072680545,200.0,0.00022099,7]
[311384905,1705072741599,500.0,0.0003,120]
[311384937,1705072980547,200.0,0.0002252,7]
[311384938,1705073018010,230.96082236,0.00021917,5]
[311385071,1705073439992,-155.00310006,0.00019099,3]
[311385073,1705073440001,-521.47861585,0.000191,2]
[311385075,1705073440011,-133.3415915,0.00019101,2]
[311385126,1705073440535,-421.0137082,0.00019101,2]
[311385128,1705073440545,-170.5489181,0.00019101,2]
[311385130,1705073440555,-213.93578797,0.00019102,2]
[311385132,1705073440567,-307.06421203,0.00019102,2]
[311385134,1705073440577,-400.15796146,0.00019102,2]
[311385136,1705073440586,-287.0479486,0.00019102,2]
[311385138,1705073440595,-18625.34520214,0.0001912,2]
[311385196,1705073441393,-6274.65479786,0.0001912,2]
[311385198,1705073441403,-353.21090991,0.00019543,2]
[311385200,1705073441412,-694.38017091,0.00019543,2]
[311385202,1705073441421,-848.51221584,0.0002,2]
[311385204,1705073441431,-266.50001777,0.0002,2]
[311385206,1705073441440,-1195.46446057,0.0002,2]
[311385208,1705073441449,-223.89868289,0.0002,2]
[311385210,1705073441458,-155.00310006,0.0002,2]
[311385212,1705073441467,-155.00310006,0.0002,2]
[311385214,1705073441475,-649.62142167,0.00020091,2]
[311385216,1705073441485,-8743.9820779,0.00020474,2]
[311385217,1705073441496,-326.84593778,0.00021,2]
[311385219,1705073441505,-500.0,0.00021,2]
[311385221,1705073441514,-881.61125875,0.00021462,2]
[311385223,1705073441526,-23801.02066394,0.00021498,2]
[311385225,1705073441535,-4108.94,0.00021705,3]
[311385227,1705073441547,-245.79711146,0.00021715,2]
[311385229,1705073441556,-212.88567836,0.00021715,2]
[311385232,1705073441567,-1557.45213137,0.00021715,2]
[311385234,1705073441577,-701.95047309,0.00021715,2]
[311385236,1705073441587,-1693.74494191,0.00021715,2]
[311385238,1705073441596,-6382.99100879,0.00021716,2]
[311385240,1705073441605,-276000.0,0.00021717,2]